fUST/lending_fUST_20250904
["ID","MTS","AMOUNT","RATE_DAILY","PERIOD"]
[383570138,1756998652802,-480.0,0.00014246,2]
[383570139,1756998652812,-3115.17,0.00014246,2]
[383570140,1756998652823,-692.4,0.00014246,2]
[383570141,1756998652832,-480.0,0.00014246,2]
[383570142,1756998652841,-480.0,0.00014246,2]
[383570143,1756998652851,-491.62,0.00014246,2]
[383570144,1756998652860,-2605.51,0.00014246,2]
[383570145,1756998652870,-848.22,0.00014246,2]
[383570146,1756998652879,-2563.87,0.00014246,2]
[383570147,1756998652891,-1548.42,0.00014246,2]
[383570148,1756998652900,-1516.13,0.00014246,2]
[383570149,1756998652910,-491.41,0.00014246,2]
[383570150,1756998652919,-480.0,0.00014246,2]
[383570151,1756998652929,-757.44,0.00014246,2]
[383570152,1756998652938,-1601.74,0.00014246,2]
[383570153,1756998652949,-480.0,0.00014246,2]
[383570154,1756998652958,-892.65,0.00014246,2]
[383570155,1756998652968,-1142.54,0.00014246,2]
[383570156,1756998652979,-480.0,0.00014246,2]
[383570157,1756998652989,-657.66,0.00014246,2]
[383570158,1756998652999,-480.0,0.00014246,2]
[383570159,1756998653102,-480.0,0.00014246,2]
[383570160,1756998653112,-480.0,0.00014246,2]
[383570161,1756998653122,-480.0,0.00014246,2]
[383570162,1756998653132,-480.0,0.00014246,2]
[383570163,1756998653141,-480.0,0.00014246,2]
[383570164,1756998653150,-1437.59,0.00014246,2]
[383570165,1756998653158,-480.0,0.00014246,2]
[383570166,1756998653167,-480.0,0.00014246,2]
[383570167,1756998653176,-2741.83,0.00014246,2]
[383570168,1756998653188,-505.47,0.00014246,2]
[383570169,1756998653198,-500.0,0.00014246,2]
[383570170,1756998653209,-421.0,0.00014246,2]
[383570171,1756998653219,-421.0,0.0001425,2]
[383570172,1756998653228,-208.766,0.00014272,2]
[383570173,1756998653236,-250.0,0.00014272,2]
[383570174,1756998653245,-224.481,0.00014272,2]
[383570175,1756998653255,-250.0,0.00014272,2]
[383570176,1756998653263,-249.1,0.00014272,2]
[383570177,1756998653272,-250.648,0.00014272,2]
[383570178,1756998653281,-262.104,0.00014272,2]
[383570179,1756998653291,-246.0,0.00014272,2]
[383570180,1756998653301,-221.273,0.00014272,2]
[383570181,1756998653311,-975.0,0.00014272,2]
[383570182,1756998653320,-2153.0,0.00014272,2]
[383570183,1756998653330,-633.0,0.00014272,2]
[383570184,1756998653340,-421.0,0.00014287,2]
[383570185,1756998653350,-581.814813,0.000143,2]
[383570186,1756998653360,-155.8242449,0.000143,2]
[383570187,1756998653370,-323.0002116,0.000143,2]
[383570188,1756998653379,-1162.2885821,0.000143,2]
[383570189,1756998653388,-153.0,0.000143,2]
[383570190,1756998653398,-153.0,0.000143,2]
[383570191,1756998653408,-161.5001058,0.000143,2]
[383570192,1756998653417,-153.0,0.000143,2]
[383570193,1756998653427,-157.8521079,0.000143,2]
[383570194,1756998653437,-1162.2127408,0.000143,2]
[383570195,1756998653447,-295.1921985,0.000143,2]
[383570196,1756998653456,-227.80304002,0.00014312,2]
[383570197,1756998653466,-421.0,0.00014317,2]
[383570198,1756998653475,-421.0,0.00014323,2]
[383570199,1756998653484,-421.0,0.00014332,2]
[383570200,1756998653494,-421.0,0.00014393,2]
[383570201,1756998653503,-388.3851953,0.000144,2]
[383570202,1756998653512,-153.0,0.000144,2]
[383570203,1756998653521,-421.0,0.00014408,2]
[383570204,1756998653530,-1000.0,0.0001441,2]
[383570205,1756998653540,-1000.0,0.0001441,2]
[383570206,1756998653549,-1000.0,0.0001441,2]
[383570207,1756998653558,-1000.0,0.0001441,2]
[383570208,1756998653568,-1000.0,0.0001441,2]
[383570209,1756998653577,-1000.0,0.0001441,2]
[383570210,1756998653586,-1000.0,0.0001441,2]
[383570211,1756998653596,-1000.0,0.0001441,2]
[383570212,1756998653605,-1000.0,0.0001441,2]
[383570213,1756998653614,-1000.0,0.0001441,2]
[383570214,1756998653624,-1000.0,0.0001441,2]
[383570215,1756998653633,-1000.0,0.0001441,2]
[383570216,1756998653642,-1053.43710219,0.0001441,2]
[383570217,1756998653651,-156.8589908,0.00014425,2]
[383570218,1756998653662,-421.0,0.0001443,2]
[383570219,1756998653671,-421.0,0.00014438,2]
[383570220,1756998653681,-421.0,0.00014483,2]
[383570221,1756998653690,-421.0,0.00014486,2]
[383570222,1756998653699,-210.76775225,0.00014501,2]
[383570223,1756998653708,-393.0,0.00014503,2]
[383570224,1756998653718,-173.39773816,0.0001452,2]
[383570225,1756998653727,-255.0,0.0001452,2]
[383570226,1756998653736,-177.44363035,0.0001452,2]
[383570227,1756998653745,-292.0,0.0001452,2]
[383570228,1756998653755,-195.84445179,0.0001452,2]
[383570229,1756998653764,-840.0,0.0001452,2]
[383570230,1756998653773,-500.0,0.0001452,2]
[383570231,1756998653782,-510.4,0.0001452,2]
[383570232,1756998653791,-480.0,0.0001452,2]
[383570233,1756998653801,-542.27,0.0001452,2]
[383570234,1756998653810,-480.0,0.0001452,2]
[383570235,1756998653821,-480.0,0.0001452,2]
[383570236,1756998653830,-480.0,0.0001452,2]
[383570237,1756998653839,-480.0,0.0001452,2]
[383570238,1756998653849,-480.0,0.0001452,2]
[383570239,1756998653858,-567.91,0.0001452,2]
[383570240,1756998653867,-608.68,0.0001452,2]
[383570241,1756998653876,-665.69,0.0001452,2]
[383570242,1756998653886,-527.80152451,0.0001452,2]
[383570243,1756998653895,-480.0,0.0001452,2]
[383570244,1756998653905,-480.0,0.0001452,2]
[383570245,1756998653915,-2586.62,0.0001452,2]
[383570246,1756998653924,-636.38,0.0001452,2]
[383570247,1756998653934,-480.0,0.0001452,2]
[383570248,1756998653943,-682.54,0.0001452,2]
[383570249,1756998653953,-709.35,0.0001452,2]
[383570250,1756998653963,-506.6,0.0001452,2]
[383570251,1756998653973,-480.0,0.0001452,2]
[383570252,1756998653986,-480.0,0.0001452,2]
[383570253,1756998653996,-480.0,0.0001452,2]
[383570254,1756998654006,-480.0,0.0001452,2]
[383570255,1756998654016,-480.0,0.0001452,2]
[383570256,1756998654026,-480.0,0.0001452,2]
[383570257,1756998654036,-480.0,0.0001452,2]
[383570258,1756998654047,-586.49226321,0.0001452,2]
[383570259,1756998654057,-480.0,0.0001452,2]
[383570260,1756998654071,-480.0,0.0001452,2]
[383570261,1756998654081,-295.2,0.0001452,2]
[383570262,1756998654090,-325.25120524,0.0001452,2]
[383570263,1756998654100,-480.0,0.0001452,2]
[383570264,1756998654110,-480.0,0.0001452,2]
[383570265,1756998654119,-576.48,0.0001452,2]
[383570266,1756998654129,-480.0,0.0001452,2]
[383570267,1756998654139,-480.0,0.0001452,2]
[383570268,1756998654148,-480.0,0.0001452,2]
[383570269,1756998654159,-573.62,0.0001452,2]
[383570270,1756998654168,-480.0,0.0001452,2]
[383570271,1756998654177,-480.0,0.0001452,2]
[383570272,1756998654187,-480.0,0.0001452,2]
[383570273,1756998654196,-480.0,0.0001452,2]
[383570274,1756998654206,-502.45,0.0001452,2]
[383570275,1756998654215,-745.55,0.0001452,2]
[383570276,1756998654225,-480.0,0.0001452,2]
[383570277,1756998654235,-480.0,0.0001452,2]
[383570278,1756998654244,-480.0,0.0001452,2]
[383570279,1756998654253,-480.0,0.0001452,2]
[383570280,1756998654263,-535.4,0.0001452,2]
[383570281,1756998654273,-480.0,0.0001452,2]
[383570282,1756998654283,-480.0,0.0001452,2]
[383570283,1756998654292,-480.0,0.0001452,2]
[383570284,1756998654305,-480.0,0.0001452,2]
[383570285,1756998654317,-482.86,0.0001452,2]
[383570286,1756998654326,-480.0,0.0001452,2]
[383570287,1756998654343,-480.0,0.0001452,2]
[383570288,1756998654353,-859.73,0.0001452,2]
[383570289,1756998654362,-197.05,0.0001452,2]
[383570290,1756998654371,-637.59,0.0001452,2]
[383570291,1756998654381,-480.0,0.0001452,2]
[383570292,1756998654391,-644.64,0.0001452,2]
[383570293,1756998654400,-480.0,0.0001452,2]
[383570294,1756998654410,-480.0,0.0001452,2]
[383570295,1756998654419,-593.4,0.0001452,2]
[383570296,1756998654429,-480.0,0.0001452,2]
[383570297,1756998654438,-569.59,0.0001452,2]
[383570298,1756998654448,-1529.9,0.0001452,2]
[383570299,1756998654458,-5724.91,0.0001452,2]
[383570300,1756998654467,-917.43,0.0001452,2]
[383570301,1756998654476,-565.24,0.0001452,2]
[383570302,1756998654486,-480.0,0.0001452,2]
[383570303,1756998654495,-2668.02,0.0001452,2]
[383570304,1756998654505,-1053.66,0.0001452,2]
[383570305,1756998654515,-768.05,0.0001452,2]
[383570306,1756998654524,-480.0,0.0001452,2]
[383570307,1756998654534,-559.49,0.0001452,2]
[383570308,1756998654543,-1902.76,0.0001452,2]
[383570309,1756998654552,-546.13,0.0001452,2]
[383570310,1756998654562,-372.8,0.0001452,2]
[383570311,1756998654575,-480.0,0.0001452,2]
[383570312,1756998654584,-865.71,0.0001452,2]
[383570313,1756998654593,-480.0,0.0001452,2]
[383570314,1756998654603,-480.0,0.0001452,2]
[383570315,1756998654613,-480.0,0.0001452,2]
[383570316,1756998654623,-480.0,0.0001452,2]
[383570317,1756998654632,-2130.29,0.0001452,2]
[383570318,1756998654641,-605.24,0.0001452,2]
[383570319,1756998654650,-788.25,0.0001452,2]
[383570320,1756998654659,-537.02412781,0.0001452,2]
[383570321,1756998654669,-836.86,0.0001452,2]
[383570322,1756998654678,-480.0,0.0001452,2]
[383570323,1756998654687,-718.83,0.0001452,2]
[383570324,1756998654696,-480.0,0.0001452,2]
[383570325,1756998654707,-536.3,0.0001452,2]
[383570326,1756998654717,-751.31,0.0001452,2]
[383570327,1756998654726,-480.0,0.0001452,2]
[383570328,1756998654736,-577.71,0.0001452,2]
[383570329,1756998654748,-2685.2,0.0001452,2]
[383570330,1756998654758,-480.0,0.0001452,2]
[383570331,1756998654767,-1405.9,0.0001452,2]
[383570332,1756998654777,-782.68,0.0001452,2]
[383570333,1756998654786,-637.48,0.0001452,2]
[383570334,1756998654795,-910.55,0.0001452,2]
[383570335,1756998654805,-612.19,0.0001452,2]
[383570336,1756998654816,-480.0,0.0001452,2]
[383570337,1756998654825,-480.0,0.0001452,2]
[383570338,1756998654835,-747.42,0.0001452,2]
[383570339,1756998654844,-683.88,0.0001452,2]
[383570340,1756998654853,-797.74,0.0001452,2]
[383570341,1756998654949,-480.0,0.0001452,2]
[383570342,1756998654960,-480.0,0.0001452,2]
[383570343,1756998654970,-655.65,0.0001452,2]
[383570344,1756998654981,-480.0,0.0001452,2]
[383570345,1756998654993,-831.48,0.0001452,2]
[383570346,1756998655003,-799.29,0.0001452,2]
[383570347,1756998655013,-480.0,0.0001452,2]
[383570348,1756998655022,-480.0,0.0001452,2]
[383570349,1756998655031,-480.0,0.0001452,2]
[383570350,1756998655041,-649.39,0.0001452,2]
[383570351,1756998655051,-1963.02,0.0001452,2]
[383570352,1756998655061,-480.0,0.0001452,2]
[383570353,1756998655072,-606.45,0.0001452,2]
[383570354,1756998655081,-480.0,0.0001452,2]
[383570355,1756998655090,-3115.17,0.0001452,2]
[383570356,1756998655100,-692.4,0.0001452,2]
[383570357,1756998655109,-480.0,0.0001452,2]
[383570358,1756998655119,-480.0,0.0001452,2]
[383570359,1756998655128,-491.62,0.0001452,2]
[383570360,1756998655138,-2605.51,0.0001452,2]
[383570361,1756998655147,-848.22,0.0001452,2]
[383570362,1756998655157,-2563.87,0.0001452,2]
[383570363,1756998655167,-1548.42,0.0001452,2]
[383570364,1756998655177,-1516.13,0.0001452,2]
[383570365,1756998655186,-491.41,0.0001452,2]
[383570366,1756998655195,-480.0,0.0001452,2]
[383570367,1756998655205,-757.44,0.0001452,2]
[383570368,1756998655215,-1601.74,0.0001452,2]
[383570369,1756998655225,-480.0,0.0001452,2]
[383570370,1756998655235,-892.65,0.0001452,2]
[383570371,1756998655245,-1142.54,0.0001452,2]
[383570372,1756998655255,-480.0,0.0001452,2]
[383570373,1756998655265,-657.66,0.0001452,2]
[383570374,1756998655275,-480.0,0.0001452,2]
[383570375,1756998655284,-262.66688904,0.0001452,2]
[383570376,1756998655294,-480.0,0.0001452,2]
[383570377,1756998655307,-480.0,0.0001452,2]
[383570378,1756998655319,-480.0,0.0001452,2]
[383570379,1756998655329,-1437.59,0.0001452,2]
[383570380,1756998655339,-480.0,0.0001452,2]
[383570381,1756998655349,-2741.83,0.0001452,2]
[383570382,1756998655358,-505.47,0.0001452,2]
[383570383,1756998655368,-421.0,0.00014543,2]
[383570384,1756998655377,-151.0,0.000146,2]
[383570385,1756998655386,-500.0,0.00014636,2]
[383570386,1756998655396,-347.408,0.00014675,2]
[383570387,1756998655405,-786.47931423,0.0001468,2]
[383570388,1756998655417,-200.0,0.00014793,2]
[383570389,1756998655427,-840.0,0.00014794,2]
[383570390,1756998655438,-500.0,0.00014794,2]
[383570391,1756998655448,-510.4,0.00014794,2]
[383570392,1756998655457,-480.0,0.00014794,2]
[383570393,1756998655468,-542.27,0.00014794,2]
[383570394,1756998655477,-480.0,0.00014794,2]
[383570395,1756998655486,-480.0,0.00014794,2]
[383570396,1756998655496,-480.0,0.00014794,2]
[383570397,1756998655505,-480.0,0.00014794,2]
[383570398,1756998655515,-480.0,0.00014794,2]
[383570399,1756998655524,-567.91,0.00014794,2]
[383570400,1756998655533,-608.68,0.00014794,2]
[383570401,1756998655543,-665.69,0.00014794,2]
[383570402,1756998655552,-480.0,0.00014794,2]
[383570403,1756998655562,-480.0,0.00014794,2]
[383570404,1756998655572,-2586.62,0.00014794,2]
[383570405,1756998655582,-636.38,0.00014794,2]
[383570406,1756998655591,-480.0,0.00014794,2]
[383570407,1756998655600,-682.54,0.00014794,2]
[383570408,1756998655609,-709.35,0.00014794,2]
[383570409,1756998655619,-480.0,0.00014794,2]
[383570410,1756998655628,-480.0,0.00014794,2]
[383570411,1756998655637,-480.0,0.00014794,2]
[383570412,1756998655647,-480.0,0.00014794,2]
[383570413,1756998655656,-480.0,0.00014794,2]
[383570414,1756998655665,-480.0,0.00014794,2]
[383570415,1756998655675,-480.0,0.00014794,2]
[383570416,1756998655684,-480.0,0.00014794,2]
[383570417,1756998655694,-480.0,0.00014794,2]
[383570418,1756998655703,-480.0,0.00014794,2]
[383570419,1756998655713,-480.0,0.00014794,2]
[383570420,1756998655723,-576.48,0.00014794,2]
[383570421,1756998655732,-480.0,0.00014794,2]
[383570422,1756998655741,-480.0,0.00014794,2]
[383570423,1756998655751,-480.0,0.00014794,2]
[383570424,1756998655760,-573.62,0.00014794,2]
[383570425,1756998655770,-480.0,0.00014794,2]
[383570426,1756998655779,-480.0,0.00014794,2]
[383570427,1756998655788,-480.0,0.00014794,2]
[383570428,1756998655798,-480.0,0.00014794,2]
[383570429,1756998655807,-502.45,0.00014794,2]
[383570430,1756998655817,-745.55,0.00014794,2]
[383570431,1756998655826,-480.0,0.00014794,2]
[383570432,1756998655836,-204.15,0.00014794,2]
[383570433,1756998655846,-480.0,0.00014794,2]
[383570434,1756998655855,-191.23,0.00014794,2]
[383570435,1756998655864,-535.4,0.00014794,2]
[383570436,1756998655873,-454.56,0.00014794,2]
[383570437,1756998655883,-480.0,0.00014794,2]
[383570438,1756998655893,-480.0,0.00014794,2]
[383570439,1756998655902,-480.0,0.00014794,2]
[383570440,1756998655911,-482.86,0.00014794,2]
[383570441,1756998655921,-480.0,0.00014794,2]
[383570442,1756998655930,-859.73,0.00014794,2]
[383570443,1756998655939,-637.59,0.00014794,2]
[383570444,1756998655948,-480.0,0.00014794,2]
[383570445,1756998655958,-644.64,0.00014794,2]
[383570446,1756998655967,-480.0,0.00014794,2]
[383570447,1756998655977,-480.0,0.00014794,2]
[383570448,1756998655988,-593.4,0.00014794,2]
[383570449,1756998655998,-480.0,0.00014794,2]
[383570450,1756998656007,-569.59,0.00014794,2]
[383570451,1756998656016,-1529.9,0.00014794,2]
[383570452,1756998656026,-5724.91,0.00014794,2]
[383570453,1756998656035,-917.43,0.00014794,2]
[383570454,1756998656044,-565.24,0.00014794,2]
[383570455,1756998656053,-480.0,0.00014794,2]
[383570456,1756998656062,-2668.02,0.00014794,2]
[383570457,1756998656072,-1053.66,0.00014794,2]
[383570458,1756998656081,-768.05,0.00014794,2]
[383570459,1756998656091,-559.49,0.00014794,2]
[383570460,1756998656100,-1902.76,0.00014794,2]
[383570461,1756998656109,-546.13,0.00014794,2]
[383570462,1756998656119,-480.0,0.00014794,2]
[383570463,1756998656129,-865.71,0.00014794,2]
[383570464,1756998656138,-480.0,0.00014794,2]
[383570465,1756998656147,-480.0,0.00014794,2]
[383570466,1756998656157,-480.0,0.00014794,2]
[383570467,1756998656167,-480.0,0.00014794,2]
[383570468,1756998656177,-2130.29,0.00014794,2]
[383570469,1756998656186,-605.24,0.00014794,2]
[383570470,1756998656196,-788.25,0.00014794,2]
[383570471,1756998656206,-836.86,0.00014794,2]
[383570472,1756998656216,-480.0,0.00014794,2]
[383570473,1756998656226,-718.83,0.00014794,2]
[383570474,1756998656235,-480.0,0.00014794,2]
[383570475,1756998656245,-536.3,0.00014794,2]
[383570476,1756998656254,-751.31,0.00014794,2]
[383570477,1756998656264,-577.71,0.00014794,2]
[383570478,1756998656274,-480.0,0.00014794,2]
[383570479,1756998656284,-2685.2,0.00014794,2]
[383570480,1756998656293,-480.0,0.00014794,2]
[383570481,1756998656303,-1405.9,0.00014794,2]
[383570482,1756998656312,-782.68,0.00014794,2]
[383570483,1756998656324,-637.48,0.00014794,2]
[383570484,1756998656334,-910.55,0.00014794,2]
[383570485,1756998656343,-612.19,0.00014794,2]
[383570486,1756998656353,-480.0,0.00014794,2]
[383570487,1756998656362,-480.0,0.00014794,2]
[383570488,1756998656371,-747.42,0.00014794,2]
[383570489,1756998656381,-683.88,0.00014794,2]
[383570490,1756998656392,-797.74,0.00014794,2]
[383570491,1756998656401,-480.0,0.00014794,2]
[383570492,1756998656410,-480.0,0.00014794,2]
[383570493,1756998656420,-655.65,0.00014794,2]
[383570494,1756998656430,-480.0,0.00014794,2]
[383570495,1756998656439,-831.48,0.00014794,2]
[383570496,1756998656449,-799.29,0.00014794,2]
[383570497,1756998656459,-480.0,0.00014794,2]
[383570498,1756998656468,-533.11609268,0.00014794,2]
[383570499,1756998656478,-480.0,0.00014794,2]
[383570500,1756998656488,-649.39,0.00014794,2]
[383570501,1756998656498,-1963.02,0.00014794,2]
[383570502,1756998656508,-480.0,0.00014794,2]
[383570503,1756998656517,-606.45,0.00014794,2]
[383570504,1756998656527,-480.0,0.00014794,2]
[383570505,1756998656536,-3115.17,0.00014794,2]
[383570506,1756998656545,-692.4,0.00014794,2]
[383570507,1756998656639,-480.0,0.00014794,2]
[383570508,1756998656649,-480.0,0.00014794,2]
[383570509,1756998656659,-491.62,0.00014794,2]
[383570510,1756998656668,-848.22,0.00014794,2]
[383570511,1756998656678,-2605.51,0.00014794,2]
[383570512,1756998656688,-2563.87,0.00014794,2]
[383570513,1756998656699,-1548.42,0.00014794,2]
[383570514,1756998656709,-1516.13,0.00014794,2]
[383570515,1756998656720,-491.41,0.00014794,2]
[383570516,1756998656729,-480.0,0.00014794,2]
[383570517,1756998656739,-757.44,0.00014794,2]
[383570518,1756998656748,-1601.74,0.00014794,2]
[383570519,1756998656758,-480.0,0.00014794,2]
[383570520,1756998656768,-892.65,0.00014794,2]
[383570521,1756998656777,-1142.54,0.00014794,2]
[383570522,1756998656787,-480.0,0.00014794,2]
[383570523,1756998656797,-657.66,0.00014794,2]
[383570524,1756998656807,-480.0,0.00014794,2]
[383570525,1756998656817,-480.0,0.00014794,2]
[383570526,1756998656827,-480.0,0.00014794,2]
[383570527,1756998656837,-480.0,0.00014794,2]
[383570528,1756998656847,-1437.59,0.00014794,2]
[383570529,1756998656856,-480.0,0.00014794,2]
[383570530,1756998656865,-2741.83,0.00014794,2]
[383570531,1756998656875,-505.47,0.00014794,2]
[383570532,1756998656884,-970.0,0.000148,3]
[383570533,1756998656894,-151.0,0.000148,2]
[383570534,1756998656903,-151.0,0.000148,2]
[383570535,1756998656913,-151.0,0.000149,2]
[383570536,1756998656923,-151.0,0.000149,2]
[383570537,1756998656932,-277.79901496,0.000149,2]
[383570538,1756998656942,-277.79901494,0.000149,2]
[383570539,1756998656952,-277.79901494,0.000149,2]
[383570540,1756998656961,-5000.0,0.00014904,2]
[383570541,1756998656971,-213.7467389,0.00014921,2]
[383570542,1756998656982,-500.0,0.00014921,2]
[383570543,1756998656992,-500.00546577,0.00014923,2]
[383570544,1756998657001,-500.0,0.00014923,2]
[383570545,1756998657011,-500.0,0.00014937,2]
[383570546,1756998657020,-500.0,0.00014945,2]
[383570547,1756998657030,-501.82497982,0.00014945,2]
[383570548,1756998657042,-500.0,0.00014945,2]
[383570549,1756998657051,-500.0,0.00014945,2]
[383570550,1756998657061,-501.38118317,0.00014945,2]
[383570551,1756998657071,-500.0,0.00014946,2]
[383570552,1756998657081,-500.0,0.00014946,2]
[383570553,1756998657091,-500.0,0.00014946,2]
[383570554,1756998657101,-500.0,0.00014946,2]
[383570555,1756998657111,-500.0,0.00014946,2]
[383570556,1756998657121,-501.46412833,0.00014946,2]
[383570557,1756998657130,-500.0,0.00014946,2]
[383570558,1756998657140,-500.0,0.00014946,2]
[383570559,1756998657150,-500.0,0.00014946,2]
[383570560,1756998657160,-500.0,0.00014946,2]
[383570561,1756998657170,-501.59109932,0.00014946,2]
[383570562,1756998657179,-500.0,0.00014946,2]
[383570563,1756998657189,-500.0,0.00014946,2]
[383570564,1756998657199,-500.0,0.00014946,2]
[383570565,1756998657209,-500.0,0.00014946,2]
[383570566,1756998657218,-500.0,0.00014946,2]
[383570567,1756998657229,-500.0,0.00014946,2]
[383570568,1756998657239,-500.0,0.00014946,2]
[383570569,1756998657248,-500.0,0.00014946,2]
[383570570,1756998657258,-500.0,0.00014946,2]
[383570571,1756998657267,-500.0,0.00014946,2]
[383570572,1756998657277,-500.0,0.00014946,2]
[383570573,1756998657287,-500.0,0.00014947,2]
[383570574,1756998657296,-500.0,0.00014947,2]
[383570575,1756998657306,-500.0,0.00014947,2]
[383570576,1756998657316,-486.9843952,0.00014947,2]
[383570577,1756998657328,-500.0,0.00014947,2]
[383570578,1756998657338,-609.30197957,0.00014972,2]
[383570579,1756998657348,-500.0,0.00014972,2]
[383570580,1756998657358,-500.61081285,0.00014972,2]
[383570581,1756998657368,-500.0,0.00014973,2]
[383570582,1756998657378,-500.0,0.00014974,2]
[383570583,1756998657389,-1000.0,0.00015,2]
[383570584,1756998657399,-151.0,0.00015,2]
[383570585,1756998657408,-151.0,0.00015,2]
[383570586,1756998657418,-160.0,0.00015,2]
[383570587,1756998657428,-420.0,0.00015009,2]
[383570588,1756998657438,-5888.0,0.0001505,2]
[383570589,1756998657447,-194.72792766,0.00015059,2]
[383570590,1756998657457,-500.0,0.0001506,2]
[383570591,1756998657467,-503.10042021,0.0001506,2]
[383570592,1756998657476,-500.0,0.0001506,2]
[383570593,1756998657486,-500.75102495,0.0001506,2]
[383570594,1756998657496,-500.0,0.0001506,2]
[383570595,1756998657506,-500.0,0.0001506,2]
[383570596,1756998657515,-502.26675755,0.0001506,2]
[383570597,1756998657525,-258.2006534,0.0001506,2]
[383570598,1756998657535,-335.41328946,0.0001506,2]
[383570599,1756998657545,-500.0,0.0001506,2]
[383570600,1756998657556,-500.0,0.0001506,2]
[383570601,1756998657566,-1680.0,0.00015065,2]
[383570602,1756998657577,-200.0,0.00015067,2]
[383570603,1756998657586,-840.0,0.00015068,2]
[383570604,1756998657596,-500.0,0.00015068,2]
[383570605,1756998657605,-510.4,0.00015068,2]
[383570606,1756998657614,-480.0,0.00015068,2]
[383570607,1756998657623,-542.27,0.00015068,2]
[383570608,1756998657633,-480.0,0.00015068,2]
[383570609,1756998657642,-480.0,0.00015068,2]
[383570610,1756998657652,-480.0,0.00015068,2]
[383570611,1756998657661,-480.0,0.00015068,2]
[383570612,1756998657670,-480.0,0.00015068,2]
[383570613,1756998657680,-567.91,0.00015068,2]
[383570614,1756998657689,-608.68,0.00015068,2]
[383570615,1756998657699,-665.69,0.00015068,2]
[383570616,1756998657713,-480.0,0.00015068,2]
[383570617,1756998657722,-480.0,0.00015068,2]
[383570618,1756998657732,-2586.62,0.00015068,2]
[383570619,1756998657741,-636.38,0.00015068,2]
[383570620,1756998657751,-480.0,0.00015068,2]
[383570621,1756998657761,-682.54,0.00015068,2]
[383570622,1756998657770,-709.35,0.00015068,2]
[383570623,1756998657779,-480.0,0.00015068,2]
[383570624,1756998657789,-480.0,0.00015068,2]
[383570625,1756998657799,-480.0,0.00015068,2]
[383570626,1756998657808,-480.0,0.00015068,2]
[383570627,1756998657817,-480.0,0.00015068,2]
[383570628,1756998657830,-480.0,0.00015068,2]
[383570629,1756998657840,-480.0,0.00015068,2]
[383570630,1756998657850,-480.0,0.00015068,2]
[383570631,1756998657859,-480.0,0.00015068,2]
[383570632,1756998657868,-480.0,0.00015068,2]
[383570633,1756998657878,-576.48,0.00015068,2]
[383570634,1756998657887,-480.0,0.00015068,2]
[383570635,1756998657897,-480.0,0.00015068,2]
[383570636,1756998657907,-480.0,0.00015068,2]
[383570637,1756998657916,-573.62,0.00015068,2]